[Event "*** MasterClass Titled Tuesday Blitz"]
[Site "Chess.com"]
[Date "2017.11.07"]
[Round "4"]
[White "MITerryble"]
[Black "Annawel"]
[Result "1-0"]
[WhiteElo "2621"]
[BlackElo "2772"]
[TimeControl "180+2"]
[EndTime "15:04:07 PST"]
[Termination "MITerryble won by resignation"]

1. d4 {[%clk 0:03:01.9]} 1... Nf6 {[%clk 0:03:00.8]} 2. Nf3 {[%clk 0:03:02.8]}
2... b6 {[%clk 0:03:01.6]} 3. g3 {[%clk 0:03:03.3]} 3... Bb7 {[%clk 0:03:02.8]}
4. Bg2 {[%clk 0:03:04.5]} 4... g6 {[%clk 0:03:04.4]} 5. O-O {[%clk 0:03:05.4]}
5... Bg7 {[%clk 0:03:05.8]} 6. c4 {[%clk 0:03:05.3]} 6... O-O {[%clk 0:03:05.6]}
7. b3 {[%clk 0:03:06.5]} 7... c5 {[%clk 0:03:02]} 8. Bb2 {[%clk 0:03:07]} 8...
cxd4 {[%clk 0:03:03.3]} 9. Bxd4 {[%clk 0:03:06.5]} 9... d6 {[%clk 0:03:00.4]}
10. Bb2 {[%clk 0:03:05.1]} 10... Nbd7 {[%clk 0:02:59.1]} 11. Nc3 {[%clk
0:03:06]} 11... a6 {[%clk 0:02:56.6]} 12. Qd2 {[%clk 0:02:49.6]} 12... Rc8
{[%clk 0:02:51.5]} 13. Rac1 {[%clk 0:02:48.3]} 13... Rc5 {[%clk 0:02:38.7]} 14.
Rfd1 {[%clk 0:02:37.9]} 14... Qa8 {[%clk 0:02:38]} 15. Ne1 {[%clk 0:02:28.1]}
15... Bxg2 {[%clk 0:02:36.7]} 16. Nxg2 {[%clk 0:02:30]} 16... Rfc8 {[%clk
0:02:29.2]} 17. a4 {[%clk 0:02:10.5]} 17... Ne4 {[%clk 0:02:05.4]} 18. Nxe4
{[%clk 0:02:08.4]} 18... Qxe4 {[%clk 0:02:07.3]} 19. Bxg7 {[%clk 0:02:07.7]}
19... Kxg7 {[%clk 0:02:09.2]} 20. Ne3 {[%clk 0:01:57.7]} 20... Nf6 {[%clk
0:02:00.5]} 21. Qd4 {[%clk 0:01:21.9]} 21... Qxd4 {[%clk 0:01:34]} 22. Rxd4
{[%clk 0:01:21.4]} 22... a5 {[%clk 0:01:35.9]} 23. Rcd1 {[%clk 0:01:18.3]} 23...
Kf8 {[%clk 0:01:36.8]} 24. Kg2 {[%clk 0:01:08.9]} 24... Re5 {[%clk 0:01:31.7]}
25. Kf3 {[%clk 0:01:04.1]} 25... Nd7 {[%clk 0:01:31.9]} 26. Nd5 {[%clk
0:00:57.3]} 26... Nc5 {[%clk 0:01:26.2]} 27. Rb1 {[%clk 0:00:55.3]} 27... Rc6
{[%clk 0:01:22.8]} 28. e3 {[%clk 0:00:51.4]} 28... e6 {[%clk 0:01:19]} 29. Nc3
{[%clk 0:00:50.2]} 29... Ke7 {[%clk 0:01:19.8]} 30. Kg2 {[%clk 0:00:46.8]} 30...
g5 {[%clk 0:01:17.4]} 31. h4 {[%clk 0:00:44.5]} 31... h6 {[%clk 0:01:15.8]} 32.
hxg5 {[%clk 0:00:42.1]} 32... hxg5 {[%clk 0:01:17.7]} 33. g4 {[%clk 0:00:36.1]}
33... Rc8 {[%clk 0:01:10.9]} 34. Nb5 {[%clk 0:00:36.6]} 34... Rc6 {[%clk
0:00:43.3]} 35. Kf3 {[%clk 0:00:29.7]} 35... f5 {[%clk 0:00:30.9]} 36. gxf5
{[%clk 0:00:27.6]} 36... Rxf5+ {[%clk 0:00:32.8]} 37. Kg2 {[%clk 0:00:28.2]}
37... e5 {[%clk 0:00:29.1]} 38. Rg4 {[%clk 0:00:17.5]} 38... Rc8 {[%clk
0:00:18.7]} 39. Nc3 {[%clk 0:00:11]} 39... Rcf8 {[%clk 0:00:18.4]} 40. Rf1
{[%clk 0:00:08.7]} 40... Ke6 {[%clk 0:00:12.5]} 41. Ne4 {[%clk 0:00:05.2]} 41...
Nxe4 {[%clk 0:00:05.1]} 42. Rxe4 {[%clk 0:00:07.1]} 42... Rh8 {[%clk 0:00:05.4]}
43. Rg4 {[%clk 0:00:07.9]} 43... Rh5 {[%clk 0:00:04.5]} 44. f3 {[%clk
0:00:08.3]} 44... Rf8 {[%clk 0:00:05.5]} 45. Rg1 {[%clk 0:00:04.8]} 45... Rfh8
{[%clk 0:00:04.8]} 46. Kf2 {[%clk 0:00:06]} 46... Kf5 {[%clk 0:00:06.3]} 47.
R1g2 {[%clk 0:00:05.9]} 47... Kf6 {[%clk 0:00:04.4]} 48. Ke2 {[%clk 0:00:07]}
48... Kf5 {[%clk 0:00:05.6]} 49. Kd3 {[%clk 0:00:08.1]} 49... Kf6 {[%clk
0:00:05.6]} 50. Ke4 {[%clk 0:00:09]} 50... Rh4 {[%clk 0:00:06.5]} 51. Kd5 {[%clk
0:00:08.5]} 51... Rxg4 {[%clk 0:00:05.9]} 52. fxg4 {[%clk 0:00:10.4]} 52... Ke7
{[%clk 0:00:05]} 53. Kc6 {[%clk 0:00:09.9]} 53... Rh3 {[%clk 0:00:03.7]} 54. Re2
{[%clk 0:00:08.2]} 54... Ke6 {[%clk 0:00:03.1]} 55. Kxb6 {[%clk 0:00:09.1]}
55... Rg3 {[%clk 0:00:04.8]} 56. Kxa5 {[%clk 0:00:09.9]} 56... Rxg4 {[%clk
0:00:06.5]} 57. Kb5 {[%clk 0:00:11.1]} 57... Rh4 {[%clk 0:00:07.8]} 58. a5
{[%clk 0:00:12.2]} 58... Rh8 {[%clk 0:00:09.7]} 59. Rf2 {[%clk 0:00:11.2]} 59...
Rb8+ {[%clk 0:00:10.6]} 60. Ka4 {[%clk 0:00:12.3]} 60... d5 {[%clk 0:00:10.1]}
61. cxd5+ {[%clk 0:00:13.3]} 61... Kxd5 {[%clk 0:00:12]} 62. b4 {[%clk
0:00:13.7]} 62... Ke4 {[%clk 0:00:13.4]} 63. a6 {[%clk 0:00:14.8]} 63... Kxe3
{[%clk 0:00:14.6]} 64. Rf5 {[%clk 0:00:15.3]} 64... e4 {[%clk 0:00:13.2]} 65.
Rxg5 {[%clk 0:00:16.5]} 65... Kf4 {[%clk 0:00:14]} 66. Rg7 {[%clk 0:00:17.3]}
66... Re8 {[%clk 0:00:15.1]} 67. b5 {[%clk 0:00:14.4]} 67... e3 {[%clk
0:00:15.8]} 68. Rg1 {[%clk 0:00:15.9]} 68... Ke4 {[%clk 0:00:15.3]} 69. b6
{[%clk 0:00:14.7]} 69... Kd5 {[%clk 0:00:16.6]} 70. Kb5 {[%clk 0:00:16]} 70...
e2 {[%clk 0:00:16.9]} 71. a7 {[%clk 0:00:17.2]} 71... Kd6 {[%clk 0:00:13.2]} 72.
b7 {[%clk 0:00:18.1]} 72... Re5+ {[%clk 0:00:13.4]} 73. Kb6 {[%clk 0:00:18.6]}
73... e1=Q {[%clk 0:00:15.3]} 74. Rxe1 {[%clk 0:00:18.7]} 74... Kd5 {[%clk
0:00:17.2]} 75. Rxe5+ {[%clk 0:00:18.8]} 1-0

[Event "*** MasterClass Titled Tuesday Blitz"]
[Site "Chess.com"]
[Date "2017.11.07"]
[Round "4"]
[White "Too_Stupid_To_Play"]
[Black "matej2221"]
[Result "1/2-1/2"]
[WhiteElo "2211"]
[BlackElo "2046"]
[TimeControl "180+2"]
[EndTime "15:04:13 PST"]
[Termination "Game drawn - insufficient material"]

1. Nf3 {[%clk 0:03:01.9]} 1... d5 {[%clk 0:03:00.5]} 2. c4 {[%clk 0:03:03.2]}
2... c6 {[%clk 0:03:00]} 3. g3 {[%clk 0:03:04.5]} 3... Nf6 {[%clk 0:03:00.7]} 4.
Bg2 {[%clk 0:03:06.4]} 4... Bf5 {[%clk 0:03:00.8]} 5. O-O {[%clk 0:03:07.4]}
5... e6 {[%clk 0:03:01.8]} 6. Qb3 {[%clk 0:03:08.1]} 6... Qb6 {[%clk 0:03:02]}
7. d3 {[%clk 0:03:09.5]} 7... Qxb3 {[%clk 0:03:00]} 8. axb3 {[%clk 0:03:10.2]}
8... Na6 {[%clk 0:03:01.2]} 9. Nh4 {[%clk 0:03:08]} 9... Bg6 {[%clk 0:03:01.3]}
10. Be3 {[%clk 0:03:05.3]} 10... Be7 {[%clk 0:02:57.1]} 11. Na3 {[%clk
0:02:55.2]} 11... Nb4 {[%clk 0:02:48.6]} 12. Rfc1 {[%clk 0:02:52.4]} 12... Ng4
{[%clk 0:02:35.2]} 13. Nxg6 {[%clk 0:02:47.5]} 13... hxg6 {[%clk 0:02:34.2]} 14.
Bd2 {[%clk 0:02:36.8]} 14... Bc5 {[%clk 0:01:17.3]} 15. d4 {[%clk 0:02:26.9]}
15... Be7 {[%clk 0:01:02.4]} 16. Nc2 {[%clk 0:01:50.7]} 16... Nxc2 {[%clk
0:01:02]} 17. Rxc2 {[%clk 0:01:51.8]} 17... f5 {[%clk 0:00:42]} 18. cxd5 {[%clk
0:01:48.4]} 18... exd5 {[%clk 0:00:41.8]} 19. b4 {[%clk 0:01:49.8]} 19... Kd7
{[%clk 0:00:29.4]} 20. b5 {[%clk 0:01:49.9]} 20... Nf6 {[%clk 0:00:19.3]} 21.
bxc6+ {[%clk 0:01:47.3]} 21... bxc6 {[%clk 0:00:21.2]} 22. b4 {[%clk 0:01:48.7]}
22... Rhb8 {[%clk 0:00:18.2]} 23. Ra6 {[%clk 0:01:49.4]} 23... Bxb4 {[%clk
0:00:13.4]} 24. Bxb4 {[%clk 0:01:37.4]} 24... Rxb4 {[%clk 0:00:15.3]} 25. Raxc6
{[%clk 0:01:38.7]} 25... Rb1+ {[%clk 0:00:16.4]} 26. Bf1 {[%clk 0:01:37.2]}
26... Rb7 {[%clk 0:00:09.2]} 27. Ra6 {[%clk 0:01:29.3]} 27... Rc8 {[%clk
0:00:08]} 28. Rca2 {[%clk 0:01:21.3]} 28... Rcc7 {[%clk 0:00:07.6]} 29. e3
{[%clk 0:01:15.4]} 29... Ne4 {[%clk 0:00:08.7]} 30. Kg2 {[%clk 0:01:13.9]} 30...
Nd6 {[%clk 0:00:06.2]} 31. R2a5 {[%clk 0:01:14.1]} 31... Rb6 {[%clk 0:00:03.8]}
32. Rxa7 {[%clk 0:01:08]} 32... Rxa7 {[%clk 0:00:04.4]} 33. Rxa7+ {[%clk
0:01:09.9]} 33... Rb7 {[%clk 0:00:06.1]} 34. Ra5 {[%clk 0:00:59.1]} 34... Ke6
{[%clk 0:00:06.8]} 35. h4 {[%clk 0:00:55.7]} 35... Rb2 {[%clk 0:00:06.8]} 36.
Bd3 {[%clk 0:00:51.4]} 36... Ne4 {[%clk 0:00:04.3]} 37. Bxe4 {[%clk 0:00:48.2]}
37... dxe4 {[%clk 0:00:05.7]} 38. Ra7 {[%clk 0:00:49.3]} 38... Kf6 {[%clk
0:00:06.5]} 39. Rc7 {[%clk 0:00:44]} 39... Rd2 {[%clk 0:00:07.3]} 40. Rd7 {[%clk
0:00:38.1]} 40... Rd1 {[%clk 0:00:07.9]} 41. Kh3 {[%clk 0:00:36.7]} 41... Rh1+
{[%clk 0:00:08.2]} 42. Kg2 {[%clk 0:00:37.6]} 42... Rd1 {[%clk 0:00:10]} 43. Ra7
{[%clk 0:00:38.7]} 43... Rc1 {[%clk 0:00:09.1]} 44. Ra2 {[%clk 0:00:39.1]} 44...
Rd1 {[%clk 0:00:09.9]} 45. Rc2 {[%clk 0:00:37.9]} 45... Ke6 {[%clk 0:00:08.8]}
46. Rc6+ {[%clk 0:00:37.6]} 46... Kf7 {[%clk 0:00:09.3]} 47. Rc2 {[%clk
0:00:37.9]} 47... Ke6 {[%clk 0:00:09.5]} 48. f3 {[%clk 0:00:39.2]} 48... Kf7
{[%clk 0:00:03.5]} 49. fxe4 {[%clk 0:00:33.2]} 49... fxe4 {[%clk 0:00:05.4]} 50.
Kh3 {[%clk 0:00:20.4]} 50... Rd3 {[%clk 0:00:06.2]} 51. Re2 {[%clk 0:00:21.6]}
51... Kf6 {[%clk 0:00:06.7]} 52. Kg4 {[%clk 0:00:23.1]} 52... Ke6 {[%clk
0:00:05.2]} 53. Kf4 {[%clk 0:00:23.8]} 53... Kd5 {[%clk 0:00:06.3]} 54. Kg5
{[%clk 0:00:21.6]} 54... Rd1 {[%clk 0:00:06.2]} 55. Kxg6 {[%clk 0:00:22.5]}
55... Rg1 {[%clk 0:00:07]} 56. Kxg7 {[%clk 0:00:18.1]} 56... Rxg3+ {[%clk
0:00:08.1]} 57. Kh6 {[%clk 0:00:19.3]} 57... Kc4 {[%clk 0:00:08.4]} 58. h5
{[%clk 0:00:15.6]} 58... Kd3 {[%clk 0:00:09.4]} 59. Re1 {[%clk 0:00:15.3]} 59...
Kd2 {[%clk 0:00:10.5]} 60. Ra1 {[%clk 0:00:13.2]} 60... Kxe3 {[%clk 0:00:08.4]}
61. Ra3+ {[%clk 0:00:12.8]} 61... Kf2 {[%clk 0:00:09.5]} 62. Ra2+ {[%clk
0:00:10.9]} 62... Kf3 {[%clk 0:00:09.7]} 63. d5 {[%clk 0:00:06.7]} 63... e3
{[%clk 0:00:10.3]} 64. d6 {[%clk 0:00:06.3]} 64... e2 {[%clk 0:00:11.4]} 65. Ra1
{[%clk 0:00:02.9]} 65... Rg8 {[%clk 0:00:08]} 66. Kh7 {[%clk 0:00:02.6]} 66...
Rd8 {[%clk 0:00:08.9]} 67. h6 {[%clk 0:00:03.8]} 67... Rxd6 {[%clk 0:00:09.7]}
68. Kg7 {[%clk 0:00:05.2]} 68... Rd1 {[%clk 0:00:10.2]} 69. Ra3+ {[%clk
0:00:06.3]} 69... Kf4 {[%clk 0:00:10.8]} 70. Ra4+ {[%clk 0:00:07.4]} 70... Kf5
{[%clk 0:00:10.8]} 71. Ra5+ {[%clk 0:00:08.8]} 71... Ke6 {[%clk 0:00:11.7]} 72.
Ra6+ {[%clk 0:00:09.4]} 72... Rd6 {[%clk 0:00:10.5]} 73. Rxd6+ {[%clk
0:00:04.5]} 73... Kxd6 {[%clk 0:00:11.1]} 74. h7 {[%clk 0:00:06.4]} 74... e1=Q
{[%clk 0:00:12.3]} 75. h8=Q {[%clk 0:00:08.2]} 75... Qe5+ {[%clk 0:00:13.3]} 76.
Kh7 {[%clk 0:00:09.1]} 76... Qxh8+ {[%clk 0:00:15]} 77. Kxh8 {[%clk 0:00:11]}
1/2-1/2

[Event "*** MasterClass Titled Tuesday Blitz"]
[Site "Chess.com"]
[Date "2017.11.07"]
[Round "4"]
[White "miaou33"]
[Black "ChristopherYoo"]
[Result "1-0"]
[WhiteElo "2303"]
[BlackElo "2254"]
[TimeControl "180+2"]
[EndTime "15:04:14 PST"]
[Termination "miaou33 won by resignation"]

1. b3 {[%clk 0:03:01]} 1... e5 {[%clk 0:02:58.9]} 2. Bb2 {[%clk 0:02:56.6]} 2...
Nc6 {[%clk 0:02:58.4]} 3. e3 {[%clk 0:02:56.1]} 3... Nf6 {[%clk 0:02:57.5]} 4.
Bb5 {[%clk 0:02:55.2]} 4... Bd6 {[%clk 0:02:55.9]} 5. Na3 {[%clk 0:02:55.1]}
5... a6 {[%clk 0:02:53.6]} 6. Bxc6 {[%clk 0:02:55.3]} 6... dxc6 {[%clk
0:02:53.4]} 7. Nc4 {[%clk 0:02:56.1]} 7... Qe7 {[%clk 0:02:52.5]} 8. Ne2 {[%clk
0:02:56.3]} 8... O-O {[%clk 0:02:52]} 9. O-O {[%clk 0:02:56.7]} 9... b5 {[%clk
0:02:52]} 10. Nxd6 {[%clk 0:02:56.7]} 10... cxd6 {[%clk 0:02:52.7]} 11. Qe1
{[%clk 0:02:55.4]} 11... Bf5 {[%clk 0:02:47.7]} 12. d3 {[%clk 0:02:49.7]} 12...
Rfe8 {[%clk 0:02:40]} 13. e4 {[%clk 0:02:45.2]} 13... Bd7 {[%clk 0:02:20.3]} 14.
f4 {[%clk 0:02:45.3]} 14... c5 {[%clk 0:02:16.7]} 15. fxe5 {[%clk 0:02:44.2]}
15... dxe5 {[%clk 0:02:17.2]} 16. Ng3 {[%clk 0:02:41.2]} 16... Rac8 {[%clk
0:02:07.4]} 17. Nf5 {[%clk 0:02:41.6]} 17... Bxf5 {[%clk 0:02:07.9]} 18. Rxf5
{[%clk 0:02:43.5]} 18... Nd7 {[%clk 0:02:07.8]} 19. Qg3 {[%clk 0:02:40.1]} 19...
c4 {[%clk 0:02:04.8]} 20. Raf1 {[%clk 0:02:36.3]} 20... f6 {[%clk 0:01:59.7]}
21. Bc1 {[%clk 0:02:31.7]} 21... cxd3 {[%clk 0:01:57.7]} 22. cxd3 {[%clk
0:02:33.6]} 22... Rc2 {[%clk 0:01:51.8]} 23. R5f2 {[%clk 0:02:04.7]} 23... Rec8
{[%clk 0:01:42.8]} 24. Bh6 {[%clk 0:01:59.7]} 24... Rxf2 {[%clk 0:01:37.9]} 25.
Rxf2 {[%clk 0:01:50.9]} 25... Nf8 {[%clk 0:01:35.8]} 26. h4 {[%clk 0:01:48]}
26... Kh8 {[%clk 0:01:34.6]} 27. Be3 {[%clk 0:01:39.3]} 27... Ne6 {[%clk
0:01:34.4]} 28. h5 {[%clk 0:01:38.4]} 28... Rd8 {[%clk 0:01:32.1]} 29. Bc1
{[%clk 0:01:31.8]} 29... Qd7 {[%clk 0:01:27]} 30. h6 {[%clk 0:01:26.6]} 30...
Qxd3 {[%clk 0:01:06.7]} 31. hxg7+ {[%clk 0:01:22.9]} 31... Nxg7 {[%clk
0:01:07.2]} 32. Qxd3 {[%clk 0:01:23]} 32... Rxd3 {[%clk 0:01:07.9]} 33. Rxf6
{[%clk 0:01:24.6]} 33... Nh5 {[%clk 0:01:03.5]} 34. Rc6 {[%clk 0:01:19.6]} 34...
Nf4 {[%clk 0:00:55.9]} 35. Bb2 {[%clk 0:01:14.6]} 35... Ne2+ {[%clk 0:00:49.1]}
36. Kf2 {[%clk 0:01:09.2]} 36... Nd4 {[%clk 0:00:49.2]} 37. Bxd4 {[%clk
0:01:05.5]} 37... exd4 {[%clk 0:00:37.6]} 38. Rxa6 {[%clk 0:01:02.2]} 38... Re3
{[%clk 0:00:38.6]} 39. Rb6 {[%clk 0:01:02.8]} 39... Rxe4 {[%clk 0:00:36.6]} 40.
Rxb5 {[%clk 0:01:03.4]} 40... d3 {[%clk 0:00:34.3]} 41. Rd5 {[%clk 0:01:02.6]}
41... Re2+ {[%clk 0:00:35.1]} 42. Kf3 {[%clk 0:01:03.6]} 42... Rxa2 {[%clk
0:00:35.9]} 43. Rxd3 {[%clk 0:01:05.4]} 43... Rb2 {[%clk 0:00:36.7]} 44. g3
{[%clk 0:01:05.5]} 44... Kg7 {[%clk 0:00:37.4]} 45. Ke4 {[%clk 0:01:07.4]} 45...
Kg6 {[%clk 0:00:36.9]} 46. Kd4 {[%clk 0:01:08.7]} 46... Kg5 {[%clk 0:00:35]} 47.
Kc3 {[%clk 0:01:08.9]} 47... Rb1 {[%clk 0:00:35.1]} 48. b4 {[%clk 0:01:10.8]}
48... Kg4 {[%clk 0:00:35.1]} 49. Kc4 {[%clk 0:01:11.3]} 49... Rc1+ {[%clk
0:00:34.7]} 50. Kd5 {[%clk 0:00:51.1]} 50... Rb1 {[%clk 0:00:33.7]} 51. Kc5
{[%clk 0:00:49.6]} 51... Rc1+ {[%clk 0:00:33.4]} 52. Kd4 {[%clk 0:00:49.4]}
52... Rb1 {[%clk 0:00:33.8]} 53. Kc4 {[%clk 0:00:48.9]} 53... h5 {[%clk
0:00:25.4]} 54. b5 {[%clk 0:00:49.3]} 54... Rc1+ {[%clk 0:00:25.7]} 55. Kd5
{[%clk 0:00:35.8]} 55... Rb1 {[%clk 0:00:24.6]} 56. Kc6 {[%clk 0:00:30.7]} 56...
Rc1+ {[%clk 0:00:24.3]} 57. Kd6 {[%clk 0:00:28.1]} 57... Rb1 {[%clk 0:00:24.2]}
58. Kc6 {[%clk 0:00:25.2]} 58... Rc1+ {[%clk 0:00:25.1]} 59. Kb7 {[%clk
0:00:25.5]} 59... Rb1 {[%clk 0:00:17]} 60. b6 {[%clk 0:00:25.6]} 60... Rc1
{[%clk 0:00:17.5]} 61. Kb8 {[%clk 0:00:24.3]} 61... Rb1 {[%clk 0:00:18.3]} 62.
b7 {[%clk 0:00:25.1]} 62... Rb2 {[%clk 0:00:19.5]} 63. Rc3 {[%clk 0:00:25.7]}
63... Rf2 {[%clk 0:00:12.6]} 64. Kc7 {[%clk 0:00:22.6]} 64... Rf7+ {[%clk
0:00:13.2]} 65. Kb6 {[%clk 0:00:23]} 65... Rf6+ {[%clk 0:00:14.3]} 66. Rc6
{[%clk 0:00:22]} 66... Rf3 {[%clk 0:00:13.8]} 67. Rc5 {[%clk 0:00:20.4]} 67...
Rf8 {[%clk 0:00:08.8]} 68. Rc8 {[%clk 0:00:20.6]} 68... Rf3 {[%clk 0:00:09.3]}
69. Rg8+ {[%clk 0:00:17.1]} 69... Kh3 {[%clk 0:00:09.6]} 70. b8=Q {[%clk
0:00:06.9]} 70... Rb3+ {[%clk 0:00:09.9]} 71. Kc7 {[%clk 0:00:08.5]} 1-0

[Event "*** MasterClass Titled Tuesday Blitz"]
[Site "Chess.com"]
[Date "2017.11.07"]
[Round "4"]
[White "Sanan_Sjugirov"]
[Black "Hasangatin_Ramil"]
[Result "1-0"]
[WhiteElo "2652"]
[BlackElo "2440"]
[TimeControl "180+2"]
[EndTime "15:04:16 PST"]
[Termination "Sanan_Sjugirov won on time"]

1. d4 {[%clk 0:03:01.5]} 1... d6 {[%clk 0:02:59.5]} 2. e4 {[%clk 0:02:57.2]}
2... Nf6 {[%clk 0:02:58.3]} 3. Nc3 {[%clk 0:02:57.3]} 3... g6 {[%clk 0:02:59.4]}
4. Bg5 {[%clk 0:02:56.7]} 4... a6 {[%clk 0:02:55.3]} 5. Qd2 {[%clk 0:02:49.1]}
5... b5 {[%clk 0:02:55.5]} 6. Bxf6 {[%clk 0:02:33.1]} 6... exf6 {[%clk
0:02:54.9]} 7. f4 {[%clk 0:02:23.1]} 7... Bb7 {[%clk 0:02:52.1]} 8. Bd3 {[%clk
0:02:23.5]} 8... c5 {[%clk 0:02:47.3]} 9. Nf3 {[%clk 0:02:17.7]} 9... Bg7 {[%clk
0:02:46.6]} 10. a4 {[%clk 0:02:10.5]} 10... c4 {[%clk 0:02:39.7]} 11. Be2 {[%clk
0:02:10.6]} 11... b4 {[%clk 0:02:38.3]} 12. Nd5 {[%clk 0:02:10.7]} 12... c3
{[%clk 0:02:19.7]} 13. bxc3 {[%clk 0:02:10]} 13... f5 {[%clk 0:02:20.9]} 14. Qe3
{[%clk 0:01:43.9]} 14... O-O {[%clk 0:02:15]} 15. c4 {[%clk 0:01:45]} 15... fxe4
{[%clk 0:02:13.7]} 16. Qxe4 {[%clk 0:01:46.9]} 16... Re8 {[%clk 0:02:00.6]} 17.
Qd3 {[%clk 0:01:43.1]} 17... Bxd5 {[%clk 0:01:58.6]} 18. cxd5 {[%clk 0:01:43.7]}
18... Qa5 {[%clk 0:02:00.1]} 19. O-O {[%clk 0:01:21.4]} 19... Qxd5 {[%clk
0:01:59.8]} 20. Kh1 {[%clk 0:01:10.7]} 20... Nc6 {[%clk 0:01:54.9]} 21. Rad1
{[%clk 0:01:07.4]} 21... Na5 {[%clk 0:01:10.3]} 22. f5 {[%clk 0:01:01.6]} 22...
Qe4 {[%clk 0:01:06.6]} 23. Qxe4 {[%clk 0:00:59.1]} 23... Rxe4 {[%clk 0:01:08.5]}
24. Bd3 {[%clk 0:01:00.3]} 24... Re3 {[%clk 0:01:06.5]} 25. fxg6 {[%clk
0:00:58.7]} 25... fxg6 {[%clk 0:01:05.2]} 26. Rfe1 {[%clk 0:00:52.8]} 26... Rae8
{[%clk 0:00:45]} 27. Rxe3 {[%clk 0:00:53.4]} 27... Rxe3 {[%clk 0:00:46.9]} 28.
Bxa6 {[%clk 0:00:54.6]} 28... Rc3 {[%clk 0:00:47.2]} 29. Bd3 {[%clk 0:00:51.8]}
29... Ra3 {[%clk 0:00:43.3]} 30. Bb5 {[%clk 0:00:50.7]} 30... Rc3 {[%clk
0:00:43.9]} 31. Ne1 {[%clk 0:00:43.5]} 31... b3 {[%clk 0:00:34.3]} 32. cxb3
{[%clk 0:00:43.9]} 32... Nxb3 {[%clk 0:00:36.2]} 33. d5 {[%clk 0:00:43.9]} 33...
Nc5 {[%clk 0:00:31]} 34. Nd3 {[%clk 0:00:24.9]} 34... Nxd3 {[%clk 0:00:30.4]}
35. Bxd3 {[%clk 0:00:26.5]} 35... Ra3 {[%clk 0:00:27.7]} 36. Bb5 {[%clk
0:00:26.6]} 36... Bd4 {[%clk 0:00:28.3]} 37. g3 {[%clk 0:00:25.3]} 37... Ra1
{[%clk 0:00:18.1]} 38. Rxa1 {[%clk 0:00:25.7]} 38... Bxa1 {[%clk 0:00:20]} 39.
a5 {[%clk 0:00:24.9]} 39... Kf8 {[%clk 0:00:19.6]} 40. Kg2 {[%clk 0:00:24.3]}
40... Bd4 {[%clk 0:00:21.5]} 41. Kf3 {[%clk 0:00:23.6]} 41... Ke7 {[%clk
0:00:22.6]} 42. Ke4 {[%clk 0:00:21.5]} 42... Bc5 {[%clk 0:00:23.5]} 43. a6
{[%clk 0:00:18.2]} 43... Bb6 {[%clk 0:00:23.5]} 44. h4 {[%clk 0:00:17.9]} 44...
Bc5 {[%clk 0:00:24.1]} 45. Be2 {[%clk 0:00:17.6]} 45... Bb6 {[%clk 0:00:24.7]}
46. Bg4 {[%clk 0:00:18]} 46... Bc5 {[%clk 0:00:25.5]} 47. Be6 {[%clk 0:00:19]}
47... Bf2 {[%clk 0:00:21.4]} 48. Bg8 {[%clk 0:00:17.9]} 48... h6 {[%clk
0:00:21.7]} 49. Kf3 {[%clk 0:00:15.3]} 49... Bc5 {[%clk 0:00:21.2]} 50. Be6
{[%clk 0:00:16.9]} 50... Bb6 {[%clk 0:00:14.7]} 51. Bh3 {[%clk 0:00:16.8]} 51...
Bc5 {[%clk 0:00:15.5]} 52. Bf1 {[%clk 0:00:17.6]} 52... Bb6 {[%clk 0:00:16.5]}
53. Bd3 {[%clk 0:00:18.6]} 53... Kf6 {[%clk 0:00:17.6]} 54. Ke4 {[%clk
0:00:19.4]} 54... Bf2 {[%clk 0:00:13.6]} 55. Bc2 {[%clk 0:00:19.8]} 55... g5
{[%clk 0:00:14.6]} 56. h5 {[%clk 0:00:19.8]} 56... g4 {[%clk 0:00:15.6]} 57. Kf4
{[%clk 0:00:18]} 57... Bb6 {[%clk 0:00:15.3]} 58. Kxg4 {[%clk 0:00:17.1]} 58...
Ke5 {[%clk 0:00:15.8]} 59. Bb3 {[%clk 0:00:16.7]} 59... Kd4 {[%clk 0:00:16.9]}
60. Kf5 {[%clk 0:00:17.3]} 60... Kc3 {[%clk 0:00:18]} 61. Bd1 {[%clk 0:00:17.8]}
61... Kc4 {[%clk 0:00:18.9]} 62. Bf3 {[%clk 0:00:17.7]} 62... Kb5 {[%clk
0:00:17.6]} 63. Be2+ {[%clk 0:00:18.8]} 63... Kc5 {[%clk 0:00:18.9]} 64. g4
{[%clk 0:00:19.8]} 64... Kxd5 {[%clk 0:00:20.1]} 65. g5 {[%clk 0:00:20.2]} 65...
hxg5 {[%clk 0:00:21.2]} 66. Bf3+ {[%clk 0:00:17.5]} 66... Kc5 {[%clk 0:00:16]}
67. h6 {[%clk 0:00:17.4]} 67... g4 {[%clk 0:00:15.3]} 68. Kxg4 {[%clk
0:00:16.5]} 68... Kb5 {[%clk 0:00:13.5]} 69. h7 {[%clk 0:00:17.5]} 69... Bd4
{[%clk 0:00:13.4]} 70. a7 {[%clk 0:00:18.6]} 1-0